bitfinex-derivatives/quotes_SOLF0:USTF0_20240818
["timestamp","ask_amount","ask_price","bid_price","bid_amount"]
[1724024681955,2.6963,143.08,142.95,11.07766985]
[1724024682155,7.51,143.03,142.95,3.56766985]
[1724024682368,7.51,143.03,143.0,0.05357109]
[1724024682369,0.05162667,143.03,143.0,0.05357109]
[1724024682559,3.4957,143.01,143.0,0.05357109]
[1724024684154,22.2957,143.01,143.0,0.05357109]
[1724024684756,26.8757,143.01,143.0,0.05357109]
[1724024685267,63.11,143.01,142.87,3.52593057]
[1724024685458,2.5441,143.0,142.85,3.46512059]
[1724024685766,2.5441,143.0,142.91,18.8]
[1724024685965,4.58,143.0,142.88,4.58]
[1724024686172,4.58,143.0,142.89,1.3025]
[1724024686360,0.04963088,142.95,142.94,18.8]
[1724024686671,8.076,143.0,142.94,18.8]
[1724024686870,4.58,143.0,142.94,20.1634]
[1724024687070,4.58,143.02,142.97,3.4967]
[1724024687372,3.4957,143.01,142.96,18.8]
[1724024687672,0.05331063,143.0,142.98,18.8]
[1724024687868,4.58,143.03,142.98,18.8]
[1724024688058,0.04458803,143.0,142.98,18.85228064]
[1724024688262,0.04458803,143.0,142.98,0.05228064]
[1724024689671,0.04458803,143.0,142.98,18.85228064]
[1724024690771,0.04458803,143.0,142.99,3.4962]
[1724024691261,7.3861,143.07,143.02,3.4953]
[1724024691465,3.8917,143.07,143.01,18.8]
[1724024691670,3.8917,143.07,143.0,18.8]
[1724024692569,3.54131656,143.05,143.02,0.0525763]
[1724024692868,0.04631656,143.05,143.02,0.0525763]
[1724024693469,3.4952,143.04,143.02,0.0525763]
[1724024693663,0.04631656,143.05,143.02,0.0525763]
[1724024694075,3.4952,143.03,143.02,0.0525763]
[1724024695669,3.4951,143.04,143.02,0.0525763]
[1724024696168,3.54101656,143.05,143.02,0.0525763]
[1724024696367,0.04631656,143.05,143.02,0.0525763]
[1724024697768,3.4951,143.04,143.02,0.0525763]
[1724024699173,0.04631656,143.05,143.02,0.0525763]
[1724024699768,0.04631656,143.05,143.02,18.8525763]
[1724024700373,3.54121656,143.05,143.02,18.8525763]
[1724024700775,3.54111656,143.05,143.02,18.8525763]
[1724024701671,3.54111656,143.05,143.02,0.0525763]
[1724024702073,3.4952,143.03,143.02,0.0525763]
[1724024703682,4.58,143.04,143.02,0.0525763]
[1724024703878,0.04631656,143.05,143.02,0.0525763]
[1724024704083,4.62631656,143.05,143.02,0.0525763]
[1724024704476,3.4952,143.03,143.02,0.0525763]
[1724024706784,3.4952,143.03,142.93,5.819]
[1724024706785,28.45,143.04,142.91,1.3568]
[1724024706978,7.52,142.99,142.92,7.52]
[1724024707285,4.58,142.98,142.92,11.0179]
[1724024707487,3.4628089,143.0,142.92,11.0179]
[1724024707682,3.4971,142.96,142.92,11.0179]
[1724024707879,4.58,142.99,142.92,7.52]
[1724024708379,0.05192799,142.97,142.95,0.04672761]
[1724024709379,0.05192799,142.97,142.95,3.54372761]
[1724024709985,0.05192799,142.97,142.95,0.04672761]
[1724024710590,0.05192799,142.97,142.95,3.54372761]
[1724024711085,0.05192799,142.97,142.95,4.79532761]
[1724024711681,0.05192799,142.97,142.96,3.4969]
[1724024712396,0.05192799,142.97,142.95,4.79542761]
[1724024712985,18.81,143.03,142.95,1.29832761]
[1724024713179,4.58,143.03,142.96,1.3019]
[1724024713583,18.81,143.05,142.96,20.1119]
[1724024713786,4.62,143.04,142.96,20.1119]
[1724024714087,0.04605034,143.01,142.99,0.05360479]
[1724024715889,3.496,143.0,142.99,0.05360479]
[1724024716892,3.54185034,143.01,142.99,0.05360479]
[1724024717290,0.04605034,143.01,142.99,0.05360479]
[1724024717491,6.9876,143.09,142.99,0.05360479]
[1724024717492,18.81,143.09,142.99,0.05360479]
[1724024717793,4.62,143.06,142.98,18.81]
[1724024717995,3.4951,143.04,142.98,18.81]
[1724024718287,3.4951,143.04,142.98,20.1195]
[1724024718497,1.31,143.11,143.03,18.81]
[1724024718790,4.62,143.11,143.05,18.81]
[1724024718987,4.62,143.16,143.09,18.81]
[1724024719189,69.45287608,143.17,143.1,18.81]
[1724024719389,18.81,143.14,143.04,2.7343]
[1724024719691,2.5942,143.16,143.04,21.5443]
[1724024719898,4.62,143.14,143.06,18.81]
[1724024720087,0.04683282,143.11,143.09,0.05040118]
[1724024721089,3.54033282,143.11,143.09,0.05040118]
[1724024721291,0.04683282,143.11,143.09,0.05040118]
[1724024723795,3.4923,143.15,143.12,3.493]
[1724024724093,4.62,143.18,143.1,24.80590892]
[1724024724291,5.8941,143.21,143.14,3.4925]
[1724024724495,4.38029559,143.2,143.14,3.4925]
[1724024724691,5.8941,143.21,143.12,18.81]
[1724024724895,3.54312489,143.18,143.15,0.0498784]
[1724024725497,0.05152489,143.18,143.15,18.8598784]
[1724024726000,0.05152489,143.18,143.16,3.4919]
[1724024726698,4.62,143.23,143.17,22.3018]
[1724024726902,4.62,143.26,143.17,18.81]
[1724024727201,3.4905,143.23,143.19,18.81]
[1724024727895,0.04412279,143.22,143.2,0.05307845]
[1724024730802,0.04412279,143.22,143.2,3.54417845]
[1724024731801,0.04412279,143.22,143.21,3.4908]
[1724024732310,0.04412279,143.22,143.2,3.54407845]
[1724024732501,0.04412279,143.22,143.2,0.05307845]
[1724024733505,3.4908,143.21,143.2,0.05307845]
[1724024735314,18.81,143.21,143.11,3.8418]
[1724024735603,18.81,143.18,143.11,3.8418]
[1724024735799,18.81,143.18,143.11,1.3151]
[1724024736003,4.9,143.2,143.07,23.71]
[1724024736004,18.81,143.17,143.07,23.71]
[1724024736602,0.05313244,143.13,143.11,0.05249056]
[1724024736804,4.9,143.14,143.06,3.4943]
[1724024736996,0.04638491,143.13,143.11,0.04714884]
[1724024737902,3.493,143.12,143.11,0.04714884]
[1724024740410,3.4939,143.09,143.05,22.3046]
[1724024740908,18.81,143.13,143.05,22.3046]
[1724024741407,4.9,143.14,143.06,3.4945]
[1724024741711,0.05095424,143.1,143.08,0.05092593]
[1724024742804,3.4939,143.09,143.08,0.05092593]
[1724024743001,0.05095424,143.1,143.08,0.05092593]
[1724024743211,4.9,143.14,143.09,18.81]
[1724024743501,3.4929,143.13,143.09,22.3036]
[1724024743900,3.4931,143.12,143.09,22.3036]
[1724024744102,4.9,143.14,143.09,18.81]
[1724024744301,18.81,143.19,143.09,18.81]
[1724024744302,0.05036781,143.13,143.09,18.81]
[1724024744507,0.05036781,143.13,143.03,8.697]
[1724024744508,0.05036781,143.13,143.1,23.48]
[1724024744808,0.05036781,143.13,143.1,23.53122444]
[1724024745010,3.4924,143.15,143.1,23.53122444]
[1724024745201,3.4924,143.15,143.12,3.493]
[1724024745402,0.04777707,143.13,143.12,3.54153495]
[1724024749209,0.04777707,143.13,143.12,0.04853495]
[1724024749806,3.54057707,143.13,143.12,0.04853495]
[1724024751104,0.04777707,143.13,143.12,0.04853495]
[1724024751908,0.04777707,143.13,143.06,1.3531]
[1724024752114,4.9,143.12,143.03,1.3033]
[1724024752611,3.4939,143.09,143.05,3.4947]
[1724024753016,0.04775431,143.08,143.06,0.04561861]
[1724024753210,3.4937,143.1,143.06,3.53991861]
[1724024753401,0.04440444,143.08,143.06,3.53991861]
[1724024754113,0.04440444,143.08,143.06,0.04561861]
[1724024754916,0.04440444,143.08,143.06,3.53991861]
[1724024756410,0.04440444,143.08,143.06,0.04561861]
[1724024757108,3.53840444,143.08,143.06,0.04561861]
[1724024758509,0.04440444,143.08,143.06,3.54001861]
[1724024759016,0.04440444,143.08,143.06,0.04561861]
[1724024760016,3.4942,143.07,143.06,0.04561861]
[1724024760512,3.53850444,143.08,143.06,0.04561861]
[1724024760815,0.04440444,143.08,143.06,0.04561861]
[1724024761408,23.48,143.21,143.07,23.48]
[1724024761612,3.4927,143.14,143.1,26.9735]
[1724024761914,75.0930955,143.17,143.1,23.48]
[1724024762213,3.4926,143.14,143.11,3.4933]
[1724024762407,3.4926,143.14,143.11,3.54411708]
[1724024762711,3.54587289,143.14,143.11,3.54411708]
[1724024763110,3.54587289,143.14,143.11,0.05081708]
[1724024763508,0.05327289,143.14,143.12,23.48]
[1724024763904,0.05327289,143.14,143.12,26.9728]
[1724024764109,0.05327289,143.14,143.12,23.48]
[1724024764408,3.493,143.12,143.11,0.05081708]
[1724024764608,0.05327289,143.14,143.06,1.3643]
[1724024764804,23.48,143.16,143.06,1.3643]
[1724024765010,28.46,143.14,143.03,28.46]
[1724024765309,23.48,143.06,142.98,27.92]
[1724024765501,8.8869,143.05,142.93,26.94280712]
[1724024765703,8.8869,143.05,142.93,23.48]
[1724024765704,3.9069,143.05,142.93,23.48]
[1724024765904,0.04813822,143.03,142.94,3.4973]
[1724024766108,4.98,143.04,142.98,0.04494477]
[1724024766309,0.04443202,143.0,142.98,0.04494477]
[1724024766514,3.4962,142.99,142.98,0.04494477]
[1724024768414,3.54063202,143.0,142.98,0.04494477]
[1724024768712,0.04443202,143.0,142.98,0.04494477]
[1724024769115,3.54053202,143.0,142.98,0.04494477]
[1724024770116,3.4962,142.99,142.98,0.04494477]
[1724024770618,3.4963,142.99,142.93,23.48]
[1724024770825,3.4963,142.99,142.96,23.48]
[1724024771011,3.9069,143.05,142.96,23.48]
[1724024771223,4.98,143.03,142.91,2.524]
[1724024771422,4.98,143.03,142.92,23.48]
[1724024771715,3.4969,142.97,142.96,0.04539831]
[1724024772321,3.4967,142.97,142.96,0.04539831]
[1724024772522,0.05153023,142.99,142.96,0.04539831]
[1724024773820,3.54773023,142.99,142.96,0.04539831]
[1724024774518,0.05153023,142.99,142.96,0.04539831]
[1724024775123,0.05153023,142.99,142.97,3.4965]
[1724024775323,0.05153023,142.99,142.96,1.38149831]
[1724024775829,0.05153023,142.99,142.96,4.87819831]
[1724024776320,0.05153023,142.99,142.97,3.4967]
[1724024776524,0.05153023,142.99,142.97,6.0266]
[1724024777729,3.54783023,142.99,142.97,2.5299]
[1724024778017,0.05153023,142.99,142.97,2.5299]
[1724024778427,0.05153023,142.99,142.96,1.38149831]
[1724024779021,3.54773023,142.99,142.96,1.38149831]
[1724024779216,0.05153023,142.99,142.96,1.38149831]
[1724024780428,0.05153023,142.99,142.96,4.87839831]
[1724024780627,0.05153023,142.99,142.96,1.38149831]
[1724024780824,3.4967,142.97,142.96,0.04539831]
[1724024781026,3.4967,142.97,142.96,0.00409364]
[1724024781623,3.4986,142.9,142.87,6.25060476]
[1724024781823,23.48,142.97,142.87,6.25060476]
[1724024782028,23.48,142.97,142.87,2.7119]
[1724024782227,3.4981,142.92,142.88,3.4987]
[1724024782424,1.2557,142.98,142.87,2.7119]
[1724024782625,1.2557,142.98,142.9,3.4983]
[1724024782827,0.05252699,142.94,142.91,0.04712675]
[1724024783930,3.4977,142.93,142.91,0.04712675]
[1724024784225,0.05252699,142.94,142.91,0.04712675]
[1724024784830,3.4977,142.93,142.91,0.04712675]
[1724024785532,3.4979,142.92,142.91,0.04712675]
[1724024785927,0.05252699,142.94,142.91,0.04712675]
[1724024786232,5.0,142.93,142.78,3.52217352]
[1724024786424,5.0,142.93,142.84,3.4997]
[1724024786626,5.0,142.93,142.81,1.2738]
[1724024786831,6.3578,142.93,142.82,23.48]
[1724024787026,3.4994,142.87,142.83,3.5]
[1724024787232,3.4994,142.87,142.82,23.48]
[1724024787233,0.04429649,142.86,142.84,0.04460162]
[1724024787429,23.48,142.92,142.82,23.48]
[1724024787631,0.05145384,142.86,142.84,0.04490477]
[1724024787931,0.04747528,142.86,142.84,0.04490477]
[1724024788127,3.54697528,142.86,142.84,0.04490477]
[1724024788432,0.04747528,142.86,142.84,0.04490477]
[1724024788631,3.54697528,142.86,142.84,0.04490477]
[1724024788827,0.04747528,142.86,142.84,0.04490477]
[1724024789228,0.04747528,142.86,142.84,23.52490477]
[1724024789431,5.0,142.92,142.84,0.04490477]
[1724024789632,5.0,142.92,142.85,23.48]
[1724024789832,3.4986,142.89,142.86,3.4993]
[1724024790329,3.4986,142.89,142.85,26.9796]
[1724024790533,3.54947808,142.89,142.86,0.0446005]
[1724024791631,0.05087808,142.89,142.86,3.5440005]
[1724024792135,0.05087808,142.89,142.87,3.4991]
[1724024792335,0.05087808,142.89,142.86,0.0446005]
[1724024792734,3.499,142.88,142.86,0.0446005]
[1724024792938,0.05087808,142.89,142.86,0.0446005]
[1724024793134,3.4991,142.87,142.86,0.0446005]
[1724024793334,0.05087808,142.89,142.86,0.0446005]
[1724024793728,0.05087808,142.89,142.87,3.499]
[1724024793934,0.05087808,142.89,142.86,0.0446005]
[1724024794129,0.05087808,142.89,142.72,7.7505]
[1724024794130,23.48,142.88,142.72,7.7505]
[1724024794330,6.6279,142.87,142.75,23.48]
[1724024794941,3.5005,142.82,142.78,3.5012]
[1724024795231,0.05018822,142.82,142.8,0.04747142]
[1724024795440,0.05018822,142.82,142.8,0.04733457]
[1724024796838,0.05018822,142.82,142.8,3.54813457]
[1724024797538,0.05018822,142.82,142.8,0.04733457]
[1724024797539,3.55058822,142.82,142.8,0.04733457]
[1724024799741,3.5006,142.81,142.8,0.04733457]
[1724024799939,0.05018822,142.82,142.8,0.04733457]
[1724024800342,3.55068822,142.82,142.8,0.04733457]
[1724024802449,3.5006,142.81,142.8,0.04733457]
[1724024806544,1.3498,142.89,142.8,0.04733457]
[1724024806749,5.26,142.92,142.84,23.48]
[1724024806945,5.26,142.92,142.86,23.48]
[1724024807547,5.26,142.99,142.91,23.48]
[1724024807849,0.04522318,142.96,142.94,0.04776567]
[1724024808045,0.93114739,142.99,142.94,0.04776567]
[1724024808251,3.4972,142.95,142.94,0.04776567]
[1724024808849,3.4991,142.87,142.86,5.26]
[1724024809051,23.48,142.92,142.81,23.48]
[1724024810041,0.0462165,142.88,142.81,23.48]
[1724024810242,5.3062165,142.88,142.85,0.04839881]
[1724024810953,3.4994,142.86,142.85,0.04839881]
[1724024812850,3.4992,142.87,142.85,0.04839881]
[1724024813154,0.0462165,142.88,142.85,23.52839881]
[1724024816058,5.26,142.94,142.87,23.48]
[1724024816259,3.4987,142.89,142.86,6.0254]
[1724024816847,5.26,142.94,142.86,2.5262]
[1724024817257,0.04875116,142.91,142.89,0.04870627]
[1724024817459,3.4986,142.9,142.89,0.04870627]
[1724024817655,0.04748629,142.91,142.89,0.04870627]
[1724024817855,0.04802319,142.91,142.89,0.04870627]
[1724024818462,3.54632319,142.91,142.89,0.04870627]
[1724024823168,3.4984,142.9,142.89,0.04870627]
[1724024825066,23.48,142.9,142.79,27.3574]
[1724024825272,1.2571,142.89,142.81,3.5005]
[1724024825463,3.5,142.84,142.81,3.5005]
[1724024825661,1.2571,142.89,142.79,27.3574]
[1724024825966,0.04973145,142.85,142.83,0.04884354]
[1724024826461,3.5,142.84,142.83,0.04884354]
[1724024828458,3.5009,142.8,142.78,5.32]
[1724024828656,5.32,142.87,142.78,5.32]
[1724024828860,5.32,142.87,142.77,23.48]
[1724024829571,3.5008,142.81,142.78,3.5013]
[1724024829764,3.5008,142.81,142.78,3.55502311]
[1724024829970,3.5005,142.82,142.79,23.48]
[1724024830172,0.04473558,142.83,142.79,23.48]
[1724024830566,3.5005,142.82,142.79,23.48]
[1724024831768,3.5006,142.81,142.79,23.48]
[1724024832768,3.5004,142.82,142.79,23.48]
[1724024833166,0.04473558,142.83,142.79,23.48]
[1724024833567,0.04473558,142.83,142.78,0.05372311]
[1724024833763,3.54503558,142.83,142.79,23.48]
[1724024834164,0.04473558,142.83,142.79,23.48]
[1724024834872,0.04473558,142.83,142.79,26.9809]
[1724024835376,3.54503558,142.83,142.8,3.5008]
[1724024837073,0.04473558,142.83,142.81,23.48]
[1724024837477,0.04473558,142.83,142.82,3.5004]
[1724024837678,5.32,142.89,142.81,23.48]
[1724024837981,3.4988,142.89,142.86,3.4994]
[1724024838172,5.32,142.91,142.86,3.4994]
[1724024838373,5.32,142.91,142.85,23.48]
[1724024838569,3.4988,142.89,142.85,23.48]
[1724024838772,0.05193657,142.89,142.87,23.53105972]
[1724024838978,5.32,142.94,142.87,23.53105972]
[1724024839284,3.4979,142.93,142.9,23.48]
[1724024839680,3.4979,142.93,142.9,26.9784]
[1724024840081,3.55016865,142.93,142.9,27.02508217]
[1724024841082,3.4979,142.92,142.9,0.04668217]
[1724024841386,0.05226865,142.93,142.9,0.04668217]
[1724024842081,3.4982,142.91,142.9,0.04668217]
[1724024842880,3.498,142.92,142.9,0.04668217]
[1724024843785,3.55006865,142.93,142.9,0.04668217]
[1724024844580,0.05226865,142.93,142.9,3.54508217]
[1724024845285,3.55006865,142.93,142.9,3.54508217]
[1724024846386,0.05226865,142.93,142.91,3.4982]
[1724024846582,0.05226865,142.93,142.9,0.04668217]
[1724024846891,3.4982,142.91,142.9,0.04668217]
[1724024849988,4.36481081,142.91,142.79,23.48]
[1724024850286,4.36481081,142.9,142.79,23.48]
[1724024850496,5.32,142.91,142.81,23.48]
[1724024850987,0.05105898,142.87,142.85,0.04999996]
[1724024851493,20.95,143.02,142.86,23.48]
[1724024851687,4.36658814,142.94,142.86,23.48]
[1724024851883,6.6785,142.96,142.86,24.8101]
[1724024852088,4.36674412,142.94,142.86,1.3301]
[1724024852281,4.36674412,142.94,142.84,24.7612]
[1724024852282,4.36674412,142.93,142.84,24.7612]
[1724024852591,3.4994,142.87,142.84,24.7612]
[1724024852888,5.3,142.93,142.84,24.81136369]
[1724024853084,3.4984,142.91,142.87,26.9789]
[1724024853288,0.0528723,142.9,142.87,27.03174785]
[1724024853487,0.0528723,142.9,142.87,23.53284785]
[1724024853893,3.5514723,142.9,142.87,23.53284785]
[1724024854388,0.0528723,142.9,142.87,0.05284785]
[1724024854889,3.4989,142.88,142.87,0.05284785]
[1724024856594,3.4987,142.89,142.87,0.05284785]
[1724024857195,3.4988,142.89,142.87,0.05284785]
[1724024857394,0.0528723,142.9,142.87,0.05284785]
[1724024858393,3.4986,142.89,142.87,0.05284785]
[1724024859485,3.4989,142.88,142.87,0.05284785]
[1724024861295,3.4989,142.88,142.8,2.6573]
[1724024861296,3.5002,142.83,142.8,26.1373]
[1724024861502,5.3,142.91,142.8,26.1373]
[1724024861693,5.63256662,142.9,142.8,29.638]
[1724024861893,5.63256662,142.9,142.8,26.1373]
[1724024861894,4.36676662,142.89,142.8,26.1373]
[1724024862096,1.2658,142.9,142.82,23.48]
[1724024862300,1.2658,142.9,142.82,26.9802]
[1724024862600,0.05313139,142.87,142.85,0.05083524]
[1724024863398,0.05313139,142.87,142.85,23.53083524]
[1724024864496,0.05313139,142.87,142.85,27.03033524]
[1724024864692,224.0,142.98,142.85,23.53083524]
[1724024864899,4.36768003,142.94,142.89,23.48]
[1724024865102,4.36768003,142.93,142.89,23.48]
[1724024865400,5.3,142.97,142.83,3.54262046]
[1724024865401,23.48,142.96,142.83,3.54262046]
[1724024865601,4.36812706,142.95,142.84,23.48]
[1724024865798,3.4988,142.89,142.84,23.48]
[1724024865999,0.04951325,142.91,142.88,0.0456726]
[1724024866196,23.48,142.98,142.85,1.3644]
[1724024866396,0.04858969,142.91,142.88,23.53203255]
[1724024866599,0.04735381,142.91,142.88,23.53300504]
[1724024866801,0.04735381,142.91,142.9,23.48]
[1724024867900,3.4975,142.94,142.9,26.9784]
[1724024868402,3.4975,142.94,142.91,3.4981]
[1724024869000,3.55000569,142.94,142.91,3.55149824]
[1724024869303,0.05250569,142.94,142.91,0.05339824]
[1724024869806,0.05250569,142.94,142.93,23.48]
[1724024870309,3.54990569,142.94,142.93,23.48]
[1724024870597,0.05250569,142.94,142.93,23.48]
[1724024871400,3.4967,142.97,142.93,26.9775]
[1724024872501,0.05299679,142.96,142.94,0.0488605]
[1724024872699,0.05299679,142.96,142.85,2.606]
[1724024872893,4.36687653,142.95,142.85,26.086]
[1724024873093,28.78,142.97,142.85,26.086]
[1724024873298,23.48,142.94,142.85,26.086]
[1724024873498,4.36682562,142.93,142.85,26.086]
[1724024873901,0.04790986,142.9,142.88,0.04647951]
[1724024874100,23.48,142.95,142.88,0.04647951]
[1724024874299,3.4986,142.89,142.88,0.04647951]
[1724024877715,0.04801584,142.9,142.88,0.04647951]
[1724024878209,0.04801584,142.9,142.88,3.54527951]
[1724024878610,0.04801584,142.9,142.88,0.04647951]
[1724024878912,5.3,143.02,142.89,23.48]
[1724024879216,23.48,143.05,142.94,23.48]
[1724024879400,3.4967,142.98,142.94,26.9773]
[1724024879912,0.04589563,142.97,142.95,0.05224162]
[1724024880504,0.04589563,142.97,142.95,3.54934162]
[1724024880809,0.04589563,142.97,142.95,0.05224162]
[1724024881616,0.04589563,142.97,142.95,3.54934162]
[1724024882810,3.4965,142.98,142.95,3.54934162]
[1724024883109,3.4965,142.98,142.95,3.4971]
[1724024883616,3.4963,142.99,142.95,3.4971]
[1724024883814,0.04627045,142.98,142.96,0.04689499]
[1724024885116,3.54277045,142.98,142.96,0.04689499]
[1724024885619,0.04627045,142.98,142.96,27.02379499]
[1724024887319,23.48,143.1,142.96,23.52689499]
[1724024887521,9.65119608,143.07,142.99,23.48]
[1724024887722,4.37119608,143.06,142.99,26.9761]
[1724024888116,4.37119608,143.06,142.99,28.76]
[1724024888423,0.05280264,143.04,143.01,23.52707326]
[1724024888727,3.54790264,143.04,143.01,23.52707326]
[1724024889021,0.05280264,143.04,143.01,23.52707326]
[1724024889223,0.05280264,143.04,143.02,3.4953]
[1724024889522,0.05280264,143.04,143.01,24.76727326]
[1724024889823,0.05280264,143.04,143.02,3.4953]
[1724024890229,0.05280264,143.04,143.01,24.76727326]
[1724024890418,0.05280264,143.04,143.02,3.4953]
[1724024890614,0.05280264,143.04,143.01,24.76727326]
[1724024890819,0.05280264,143.04,143.02,3.4953]
[1724024891123,0.05280264,143.04,143.03,5.28]
[1724024894123,23.48,143.16,143.03,28.76]
[1724024894325,13.61759113,143.14,143.03,28.76]
[1724024894622,3.4937,143.1,143.07,3.4941]
[1724024894822,9.2452,143.14,143.03,28.76]
[1724024894823,1.2716,143.14,143.06,23.48]
[1724024895222,1.2716,143.14,143.06,26.9744]
[1724024895422,0.053568,143.11,143.06,26.9744]
[1724024895625,0.053568,143.11,143.09,0.04711963]
[1724024896027,3.4935,143.1,143.09,0.04711963]
[1724024898134,0.053568,143.11,143.0,4.73095145]
[1724024898135,23.533568,143.11,143.0,24.7329]
[1724024898428,7.8127,143.1,143.0,23.48]
[1724024898632,7.8127,143.1,142.86,7.29747157]
[1724024898633,23.48,143.07,142.93,6.5285]
[1724024898832,23.48,143.07,142.95,23.48]
[1724024899026,3.4961,143.0,142.96,3.4968]
[1724024899229,23.48,143.07,142.96,3.4968]
[1724024899230,0.04503592,143.02,142.96,3.4968]
[1724024899429,0.04503592,143.02,142.97,0.04861015]
[1724024899729,0.04503592,143.02,142.97,3.54531015]
[1724024900228,0.04503592,143.02,142.97,0.04861015]
[1724024900837,3.4964,142.99,142.97,0.04861015]
[1724024901325,0.04503592,143.02,142.97,0.04861015]
[1724024901527,3.4964,142.98,142.97,0.04861015]
[1724024901930,0.04504867,142.99,142.97,0.04861015]
[1724024902233,0.04727416,142.99,142.97,0.04861015]
[1724024903231,0.04727416,142.99,142.97,27.02531015]
[1724024904136,0.04727416,142.99,142.98,3.4964]
[1724024904728,1.2805,143.06,142.99,3.4962]
[1724024904931,1.2805,143.06,142.97,23.48]
[1724024905136,3.4959,143.01,142.97,23.48]
[1724024905333,3.4959,143.01,142.97,26.9766]
[1724024905529,1.2805,143.06,142.97,23.48]
[1724024905842,0.04670619,143.03,143.0,0.04475615]
[1724024906328,3.4957,143.01,143.0,0.04475615]
[1724024906932,23.48,143.03,142.93,32.541]
[1724024907134,23.48,143.03,142.93,30.05]
[1724024907135,7.8906,143.02,142.93,30.05]
[1724024907335,3.497,142.96,142.93,33.5475]
[1724024907933,3.54594175,142.96,142.93,33.59299736]
[1724024908143,3.4974,142.94,142.93,0.04549736]
[1724024910635,3.4983,142.91,142.87,3.4989]
[1724024911035,3.4981,142.92,142.86,23.48]
[1724024911336,3.4981,142.92,142.88,3.4988]
[1724024911532,0.04928034,142.91,142.89,0.04970432]
[1724024911740,0.04928034,142.91,142.89,3.54820432]
[1724024912936,3.54748034,142.91,142.89,0.04970432]
[1724024913143,0.04928034,142.91,142.89,0.04970432]
[1724024913539,3.4984,142.9,142.89,0.04970432]
[1724024917534,3.54758034,142.91,142.89,0.04970432]
[1724024917938,27.04482053,143.01,142.89,0.04970432]
[1724024918140,5.24,142.97,142.88,23.48]
[1724024918341,3.4978,142.93,142.9,3.4983]
[1724024919041,3.54763435,142.93,142.9,3.54574383]
[1724024919240,0.04983435,142.93,142.9,0.04744383]
[1724024920244,0.04983435,142.93,142.91,23.48]
[1724024920847,0.04983435,142.93,142.92,3.4979]
[1724024921047,0.04983435,142.93,142.91,23.48]
[1724024921249,0.04983435,142.93,142.91,26.978]
[1724024921547,0.04983435,142.93,142.9,0.04744383]
[1724024922738,3.54753435,142.93,142.9,3.54574383]
[1724024922944,0.04983435,142.93,142.9,0.04744383]
[1724024924846,5.24,142.92,142.78,5.24]
[1724024925045,2.5322,142.91,142.82,23.48]
[1724024925243,3.4991,142.88,142.83,3.4999]
[1724024925439,2.5322,142.91,142.83,3.4999]
[1724024925849,0.0478569,142.88,142.86,0.04428641]
[1724024926047,3.4992,142.87,142.86,0.04428641]
[1724024927150,3.5468569,142.88,142.86,0.04428641]
[1724024929150,0.0478569,142.88,142.86,0.04428641]
[1724024929754,0.0478569,142.88,142.86,3.54358641]
[1724024930051,0.0478569,142.88,142.86,0.04428641]
[1724024930653,3.5467569,142.88,142.86,0.04428641]
[1724024931053,0.0478569,142.88,142.86,0.04428641]
[1724024931255,3.4991,142.87,142.86,0.04428641]
[1724024931553,0.0478569,142.88,142.78,23.48]
[1724024931754,3.5003,142.83,142.78,23.48]
[1724024931946,5.24,142.85,142.78,23.48]
[1724024932146,5.24,142.85,142.78,26.9812]
[1724024932351,5.24,142.85,142.78,23.48]
[1724024932758,0.04955208,142.83,142.8,0.04578935]
[1724024932956,3.5006,142.81,142.8,0.04578935]
[1724024933152,0.04955208,142.83,142.75,1.3553]
[1724024933553,5.24,142.85,142.75,1.3553]
[1724024934254,0.05097216,142.81,142.79,0.04578762]
[1724024935856,3.5009,142.8,142.79,0.04578762]
[1724024936551,2.5974,142.88,142.79,0.04578762]
[1724024936758,2.5974,142.88,142.78,23.48]
[1724024937267,2.5974,142.88,142.78,26.9812]
[1724024937456,0.04604454,142.84,142.82,0.04587074]
[1724024937861,3.5003,142.83,142.82,0.04587074]